bitfinex-derivatives/quotes_SOLF0:USTF0_20220101
["timestamp","ask_amount","ask_price","bid_price","bid_amount"]
[1641044807842,2.45875645,172.79,172.76,1.64976329]
[1641044808344,27.66479,172.8,172.77,4.11036987]
[1641044808945,2.45875013,172.79,172.77,4.11036987]
[1641044810147,27.66479,172.8,172.77,4.11036987]
[1641044810648,2.45878324,172.79,172.77,4.11036987]
[1641044811252,27.66479,172.8,172.77,4.11036987]
[1641044811948,2.45880855,172.79,172.77,4.11036987]
[1641044812951,27.66479,172.8,172.77,4.11036987]
[1641044813552,2.45879915,172.79,172.77,4.11036987]
[1641044814150,27.66479,172.8,172.77,4.11036987]
[1641044814853,2.45880496,172.79,172.77,4.11036987]
[1641044815352,27.66479,172.8,172.77,4.11036987]
[1641044816152,2.45880778,172.79,172.77,4.11036987]
[1641044816752,27.66479,172.8,172.77,4.11036987]
[1641044817358,2.45879387,172.79,172.77,4.11036987]
[1641044818055,27.66479,172.8,172.77,4.11036987]
[1641044819356,2.45878829,172.79,172.77,4.11036987]
[1641044819853,27.66479,172.8,172.77,5.76013316]
[1641044820453,2.4588139,172.79,172.77,5.76013316]
[1641044821354,27.66479,172.8,172.77,5.76013316]
[1641044821956,2.45860288,172.79,172.77,4.11036987]
[1641044822357,2.45860288,172.79,172.77,7.11036987]
[1641044822561,27.66479,172.8,172.77,5.76013316]
[1641044823559,2.45863361,172.79,172.77,5.76013316]
[1641044824161,27.66479,172.8,172.77,4.11036987]
[1641044824962,2.45863218,172.79,172.77,5.76013316]
[1641044825560,27.66479,172.8,172.77,5.76013316]
[1641044825965,12.33120063,172.81,172.79,6.0]
[1641044826163,5.885,172.82,172.8,6.0]
[1641044826362,49.28806992,172.9,172.81,6.0]
[1641044826662,32.57636814,172.86,172.84,58.32958]
[1641044827062,32.57636814,172.86,172.84,55.32958]
[1641044827264,32.5662,172.92,172.85,4.64976329]
[1641044827464,32.57636814,172.95,172.85,1.64976329]
[1641044827667,64.26986814,172.95,172.87,3.0]
[1641044828165,32.57636814,172.94,172.87,3.0]
[1641044828765,41.56963404,172.94,172.87,3.0]
[1641044830570,41.56963404,172.94,172.86,4.10801112]
[1641044830771,41.56963404,172.94,172.89,3.0]
[1641044831871,8.9932659,172.94,172.89,3.0]
[1641044833172,8.9932659,172.94,172.88,4.10801112]
[1641044833373,8.9932659,172.94,172.87,31.77280112]
[1641044833574,8.9932659,172.94,172.9,3.0]
[1641044833774,8.9932659,172.94,172.92,3.0]
[1641044833975,8.9932659,172.95,172.89,4.10801112]
[1641044834176,8.9932659,172.95,172.94,3.0]
[1641044835879,8.9932659,172.98,172.94,3.0]
[1641044837782,8.9932659,172.98,172.93,4.10801112]
[1641044837783,8.9932659,172.98,172.95,3.0]
[1641044841987,11.33741218,172.98,172.95,3.0]
[1641044844088,11.33741218,172.98,172.92,4.10801112]
[1641044845087,11.33741218,172.98,172.93,4.10801112]
[1641044846186,27.66479,172.99,172.93,4.10801112]
[1641044846388,27.66479,172.99,172.9,60.23999]
[1641044846592,27.66479,172.99,172.96,3.0]
[1641044847489,27.66479,172.99,172.95,3.0]
[1641044848189,27.66479,172.99,172.9,60.23999]
[1641044848589,27.66479,172.99,172.95,3.0]
[1641044848791,27.66479,172.99,172.94,3.0]
[1641044848991,27.66479,172.99,172.93,3.0]
[1641044849296,32.01979,172.99,172.9,60.23999]
[1641044851594,11.33245803,172.98,172.93,4.10801112]
[1641044854399,11.33245803,172.98,172.93,7.10801112]
[1641044856400,12.32042744,172.97,172.93,7.10801112]
[1641044856901,11.33245803,172.98,172.93,7.10801112]
[1641044857604,12.32044693,172.97,172.93,7.10801112]
[1641044858305,11.33245803,172.98,172.93,7.10801112]
[1641044858804,12.32032971,172.97,172.93,7.10801112]
[1641044859404,11.33245803,172.98,172.93,7.10801112]
[1641044860006,2.34397691,172.98,172.93,7.10801112]
[1641044860311,2.34397691,172.98,172.94,5.87085141]
[1641044861109,44.34013746,172.99,172.94,5.87085141]
[1641044861308,4.10678297,172.95,172.94,5.87085141]
[1641044861708,2.34394974,172.98,172.94,5.87085141]
[1641044862509,44.34013746,172.99,172.95,4.10801112]
[1641044863509,2.34393508,172.98,172.94,5.87085141]
[1641044864309,44.34013746,172.99,172.94,5.87085141]
[1641044864710,44.34013746,172.99,172.94,4.10801112]
[1641044865010,14.66223127,172.98,172.93,3.0]
[1641044867718,14.66223127,172.98,172.93,7.10801112]
[1641044869118,18.66223127,172.98,172.93,4.10801112]
[1641044869319,5.78084805,172.96,172.89,12.32042744]
[1641044869518,33.44664077,172.94,172.89,12.32042744]
[1641044869819,12.32034746,172.92,172.86,3.0]
[1641044870821,17.96334746,172.92,172.87,1.72426287]
[1641044871420,17.96334746,172.92,172.86,3.0]
[1641044871621,14.66223127,172.91,172.86,3.0]
[1641044873523,12.32034746,172.9,172.86,3.0]
[1641044875934,12.32034746,172.9,172.82,27.66479]
[1641044876529,2.34188381,172.91,172.84,12.32042744]
[1641044877128,2.34188381,172.91,172.86,3.0]
[1641044877330,12.32034746,172.92,172.86,3.0]
[1641044877631,12.32034746,172.92,172.86,30.66479]
[1641044878031,11.47323782,172.93,172.87,1.7257858]
[1641044878734,12.32386085,172.92,172.87,1.7257858]
[1641044879336,11.47323782,172.93,172.87,1.7257858]
[1641044879934,12.32386717,172.92,172.87,1.7257858]
[1641044880536,11.47323782,172.93,172.87,1.7257858]
[1641044881139,12.32365233,172.92,172.87,1.7257858]
[1641044881637,12.32365233,172.92,172.87,4.7257858]
[1641044881839,12.32365233,172.91,172.87,4.7257858]
[1641044882339,2.38216444,172.93,172.87,3.0]
[1641044882538,2.38216444,172.93,172.86,27.66479]
[1641044883038,2.38216444,172.93,172.86,30.66479]
[1641044883240,12.32354933,172.92,172.87,1.72579814]
[1641044883741,12.32354933,172.92,172.87,4.72579814]
[1641044883942,2.38216444,172.93,172.89,3.0]
[1641044884144,2.38216444,172.93,172.86,27.66479]
[1641044884543,2.38216444,172.93,172.89,3.0]
[1641044884743,2.38216444,172.94,172.89,3.0]
[1641044885343,2.38216444,172.94,172.87,30.7613]
[1641044885641,2.38216444,172.95,172.9,3.0]
[1641044887041,2.38216444,172.95,172.87,30.7613]
[1641044887642,2.38216444,172.95,172.87,33.7613]
[1641044887942,2.38216444,172.95,172.87,30.7613]
[1641044888141,2.38216444,172.95,172.89,3.0]
[1641044888543,2.38216444,172.95,172.88,3.0]
[1641044888743,2.38216444,172.95,172.87,30.7613]
[1641044889946,2.38216444,172.95,172.88,3.0]
[1641044890145,2.38216444,172.95,172.87,30.7613]
[1641044890146,2.38216444,172.95,172.9,3.0]
[1641044890346,2.38216444,172.95,172.89,3.0]
[1641044890546,6.91616444,172.95,172.88,3.0]
[1641044891246,2.38216444,172.94,172.88,3.0]
[1641044891446,2.38216444,172.94,172.87,30.7613]
[1641044893049,2.38216444,172.94,172.89,3.0]
[1641044893350,2.38216444,172.95,172.89,3.0]
[1641044894352,2.38216444,172.95,172.87,30.7613]
[1641044895252,12.32354933,172.94,172.88,1.72584751]
[1641044896052,12.32354933,172.94,172.89,3.0]
[1641044896252,12.32354933,172.94,172.88,1.72584751]
[1641044899455,12.32354933,172.94,172.9,3.0]
[1641044899856,12.32354933,172.94,172.89,27.66479]
[1641044900555,12.32354933,172.94,172.9,3.0]
[1641044900958,11.47109131,172.96,172.9,3.0]
[1641044901555,12.32182107,172.94,172.9,3.0]
[1641044902255,12.32153239,172.95,172.91,4.72586537]
[1641044902759,12.32153239,172.95,172.91,3.0]
[1641044903660,11.47109131,172.96,172.91,3.0]
[1641044904363,12.32093251,172.95,172.91,3.0]
[1641044904663,12.32093251,172.95,172.89,27.66479]
[1641044905060,2.38216444,172.96,172.89,27.66479]
[1641044905861,2.38216444,172.96,172.91,3.0]
[1641044909773,2.38216444,172.96,172.89,27.66479]
[1641044910168,2.38216444,172.96,172.87,30.7613]
[1641044910569,2.38216444,172.96,172.88,3.0]
[1641044910770,14.65853867,172.96,172.88,3.0]
[1641044911171,14.65853867,172.96,172.83,102.70745554]
[1641044911372,14.65853867,172.96,172.86,3.0]
[1641044911871,39.94116423,172.95,172.85,27.66479]
[1641044912172,39.94116423,172.95,172.87,3.0]
[1641044912372,39.94116423,172.95,172.85,27.66479]
[1641044912574,2.38216444,172.94,172.87,3.0]
[1641044912774,2.38216444,172.94,172.85,27.66479]
[1641044912972,2.38216444,172.94,172.87,3.0]
[1641044913174,2.38216444,172.94,172.85,27.66479]
[1641044913878,12.27637423,172.92,172.86,1.72580891]
[1641044914279,12.27637423,172.92,172.88,3.0]
[1641044914478,11.47248115,172.94,172.86,4.72580891]
[1641044914678,12.32292401,172.93,172.86,4.72580891]
[1641044914878,12.32292401,172.93,172.86,1.72580891]
[1641044915082,12.32292401,172.93,172.88,3.0]
[1641044915280,12.32292401,172.92,172.88,3.0]
[1641044915481,12.32292401,172.92,172.87,1.72580891]
[1641044915880,11.47248115,172.94,172.86,1.72580891]
[1641044916081,11.47248115,172.94,172.88,3.0]
[1641044916280,11.47248115,172.94,172.86,1.72580891]
[1641044916480,11.47248115,172.94,172.88,3.0]
[1641044916680,12.32317264,172.92,172.85,27.66479]
[1641044917181,11.47248115,172.94,172.85,27.66479]
[1641044917479,11.47248115,172.94,172.88,3.0]
[1641044917782,11.47248115,172.94,172.86,4.72581124]
[1641044917983,12.32315451,172.92,172.86,4.72581124]
[1641044918382,12.32315451,172.92,172.86,1.72581124]
[1641044918583,11.47248115,172.94,172.87,1.72581124]
[1641044918785,11.47248115,172.94,172.88,3.0]
[1641044919282,12.32323934,172.92,172.88,3.0]
[1641044920083,11.47248115,172.94,172.88,3.0]
[1641044920785,12.3232514,172.92,172.88,3.0]
[1641044921885,11.47248115,172.94,172.88,3.0]
[1641044922484,12.32324626,172.92,172.88,3.0]
[1641044923085,11.47248115,172.94,172.88,3.0]
[1641044923686,12.32324439,172.92,172.88,3.0]
[1641044924386,14.66721905,172.94,172.88,3.0]
[1641044925989,14.66721905,172.94,172.87,3.0]
[1641044926288,14.66721905,172.94,172.85,27.66479]
[1641044926492,14.66721905,172.94,172.87,3.0]
[1641044926689,14.66721905,172.94,172.85,27.66479]
[1641044926891,14.66721905,172.94,172.86,1.72045965]
[1641044927191,14.66721905,172.94,172.88,3.0]
[1641044928292,14.66721905,172.94,172.85,27.66479]
[1641044929391,14.66721905,172.94,172.88,3.0]
[1641044929591,4.09502765,172.9,172.88,3.0]
[1641044930392,2.38216444,172.92,172.88,3.0]
[1641044930593,2.38216444,172.92,172.86,4.09502765]
[1641044930991,4.09501504,172.9,172.86,5.81548779]
[1641044932094,2.37455707,172.92,172.86,5.81548779]
[1641044932495,2.37455707,172.92,172.88,3.0]
[1641044932794,4.09500916,172.9,172.88,3.0]
[1641044933496,2.37454578,172.92,172.88,3.0]
[1641044933997,4.09500426,172.9,172.88,3.0]
[1641044934896,4.09500426,172.9,172.86,9.75602765]
[1641044935095,2.37453927,172.92,172.89,3.0]
[1641044935495,2.37453927,172.92,172.9,3.0]
[1641044935697,4.10716654,172.91,172.9,8.82089412]
[1641044936398,27.66479,172.95,172.9,8.82089412]
[1641044936998,14.70289834,172.94,172.9,7.09502765]
[1641044937499,27.66479,172.95,172.9,7.09502765]
[1641044938504,14.702909,172.94,172.9,4.09502765]
[1641044938801,14.702909,172.94,172.9,7.09502765]
[1641044939000,27.66479,172.95,172.9,7.09502765]
[1641044940100,27.66479,172.95,172.9,4.09502765]
[1641044940302,14.70325294,172.94,172.9,7.09502765]
[1641044940905,4.10721701,172.91,172.9,7.09502765]
[1641044941506,27.66479,172.95,172.9,7.09502765]
[1641044941706,60.24115814,172.98,172.9,8.82088962]
[1641044942706,4.10721514,172.91,172.9,7.09502765]
[1641044943608,11.46977307,172.97,172.9,7.09502765]
[1641044943807,11.46977307,172.97,172.9,8.82088897]
[1641044944510,4.10721295,172.91,172.9,7.09502765]
[1641044944710,4.10721295,172.91,172.9,11.48202765]
[1641044945012,31.7927,172.96,172.9,11.48202765]
[1641044945212,11.46977307,172.95,172.9,13.20788961]
[1641044946213,11.46977307,172.95,172.9,7.387]
[1641044946214,4.09823633,172.92,172.9,7.387]
[1641044946813,2.38135354,172.95,172.9,7.387]
[1641044947013,2.38135354,172.95,172.9,3.0]
[1641044947712,4.0982328,172.92,172.9,3.0]
[1641044948214,2.38135354,172.95,172.9,3.0]
[1641044948815,4.09823302,172.92,172.9,3.0]
[1641044949613,2.38135354,172.95,172.9,3.0]
[1641044950113,4.09824754,172.92,172.9,3.0]
[1641044951215,30.04614354,172.95,172.9,3.0]
[1641044951417,12.29470898,172.93,172.9,3.0]
[1641044952819,14.67606252,172.94,172.9,3.0]
[1641044954419,12.29470898,172.93,172.9,3.0]
[1641044956122,11.47139197,172.94,172.9,3.0]
[1641044957324,12.32269273,172.93,172.9,3.0]
[1641044958028,11.47139197,172.94,172.9,3.0]
[1641044958428,11.47139197,172.94,172.89,4.09502765]
[1641044958727,11.47139197,172.94,172.9,3.0]
[1641044958928,12.3226932,172.93,172.9,3.0]
[1641044959331,14.68670355,172.94,172.9,3.0]
[1641044962234,14.68670355,172.94,172.88,4.09502765]
[1641044962632,14.68670355,172.94,172.89,3.0]
[1641044962833,14.68670355,172.94,172.88,4.09502765]
[1641044963334,4.10178187,172.9,172.88,4.09502765]
[1641044963835,14.68670355,172.94,172.88,4.09502765]
[1641044964638,4.10178046,172.9,172.89,3.0]
[1641044965038,10.08278046,172.9,172.89,3.0]
[1641044965540,5.981,172.9,172.89,3.0]
[1641044966046,8.36235354,172.9,172.89,3.0]
[1641044966746,5.981,172.9,172.89,3.0]
[1641044967245,8.35957897,172.9,172.89,3.0]
[1641044967845,5.981,172.9,172.89,3.0]
[1641044968747,8.35961587,172.9,172.89,3.0]
[1641044969248,10.08280437,172.9,172.89,3.0]
[1641044969951,5.981,172.9,172.89,3.0]
[1641044970151,12.30535001,172.94,172.89,3.0]
[1641044970851,14.68382252,172.94,172.87,4.09502765]
[1641044971252,14.68382252,172.94,172.87,5.81840527]
[1641044971752,20.05682252,172.94,172.87,5.81840527]
[1641044971954,12.30535001,172.93,172.87,5.81840527]
[1641044972353,20.46567329,172.93,172.87,5.81840527]
[1641044972954,27.66479,172.88,172.87,5.81840527]
[1641044973954,27.66479,172.88,172.84,4.09502765]
[1641044975455,2.37847251,172.87,172.83,4.09502765]
[1641044976158,39.97014001,172.88,172.84,4.09502765]
[1641044977058,2.38289133,172.87,172.84,4.09502765]
[1641044977561,27.66479,172.88,172.8,34.82542765]
[1641044977860,27.66479,172.88,172.82,3.0]
[1641044978360,27.66479,172.88,172.8,34.82542765]
[1641044980962,39.92718194,172.91,172.8,34.82542765]
[1641044981462,39.92718194,172.91,172.83,3.0]
[1641044981764,2.37065254,172.9,172.83,3.0]
[1641044982064,2.37065254,172.9,172.8,34.82542765]
[1641044982465,2.37065254,172.9,172.81,4.09502765]
[1641044983066,2.37065254,172.9,172.82,27.66479]
[1641044983265,2.37065254,172.9,172.85,3.0]
[1641044986172,4.08749152,172.88,172.85,3.0]
[1641044987079,27.66479,172.87,172.85,3.0]
[1641044988580,4.08749297,172.88,172.85,3.0]
[1641044988781,27.66479,172.91,172.85,3.0]
[1641044989678,12.26239194,172.88,172.85,3.0]
[1641044993283,12.26239194,172.87,172.85,3.0]
[1641044993784,11.47704441,172.9,172.85,3.0]
[1641044994586,12.32666807,172.87,172.85,3.0]
[1641044995185,11.47704441,172.9,172.85,3.0]
[1641044995884,12.32661292,172.88,172.85,3.0]
[1641044997589,39.99140292,172.88,172.85,3.0]
[1641044998391,12.32661292,172.86,172.85,3.0]
[1641045001002,11.47704441,172.87,172.85,3.0]
[1641045001502,12.32552535,172.87,172.85,3.0]
[1641045002504,14.70858268,172.87,172.85,3.0]
[1641045003508,12.32552535,172.86,172.85,3.0]
[1641045004108,12.32552535,172.86,172.82,4.09502765]
[1641045004508,9.09419454,172.87,172.85,3.0]
[1641045004710,12.32546753,172.87,172.85,3.0]
[1641045005011,12.32546753,172.87,172.86,3.0]
[1641045005413,14.70852486,172.88,172.86,3.0]
[1641045005611,14.70852486,172.88,172.84,4.09502765]
[1641045005811,14.70852486,172.88,172.85,27.66479]
[1641045006212,14.70852486,172.88,172.87,3.0]
[1641045007114,9.09419454,172.91,172.87,3.0]
[1641045007317,12.32283702,172.9,172.87,3.0]
[1641045008616,11.4763653,172.91,172.87,3.0]
[1641045009217,12.32482268,172.9,172.87,3.0]
[1641045009717,12.32482268,172.9,172.86,4.09502765]
[1641045009916,4.0980278,172.88,172.85,27.66479]
[1641045011017,2.38217076,172.91,172.85,27.66479]
[1641045011918,2.38217076,172.91,172.89,3.0]
[1641045012119,2.38217076,172.91,172.87,3.0]
[1641045012319,2.38217076,172.91,172.86,3.0]
[1641045012520,4.09805302,172.88,172.86,3.0]
[1641045013122,12.2940834,172.92,172.86,3.0]
[1641045013621,4.09802267,172.88,172.86,3.0]
[1641045014322,12.2940834,172.92,172.86,3.0]
[1641045014519,12.2940834,172.92,172.84,34.62222765]
[1641045014720,17.2910834,172.92,172.85,3.0]
[1641045015019,4.09802663,172.88,172.84,34.62222765]
[1641045015720,4.09802663,172.88,172.86,3.0]
[1641045016122,59.20549,172.91,172.86,3.0]
[1641045016321,4.09827913,172.87,172.86,3.0]
[1641045016822,14.67625416,172.9,172.86,3.0]
[1641045017022,20.459108,172.9,172.85,3.0]
[1641045018324,4.09852067,172.86,172.85,3.0]
[1641045019025,2.38217076,172.89,172.85,3.0]
[1641045019726,2.38217076,172.89,172.82,126.74523173]
[1641045019929,14.67625416,172.89,172.85,3.0]
[1641045021028,14.67625416,172.89,172.86,3.0]
[1641045025135,4.09828844,172.87,172.86,3.0]
[1641045025734,2.38217076,172.9,172.86,3.0]
[1641045026534,4.09820431,172.87,172.86,3.0]
[1641045027738,5.423,172.88,172.86,3.0]
[1641045027938,17.7170834,172.88,172.86,3.0]
[1641045028439,2.38217076,172.87,172.86,3.0]
[1641045029141,5.423,172.88,172.86,3.0]
[1641045029540,5.423,172.88,172.84,4.09502765]
[1641045029943,12.32649708,172.87,172.83,4.09502765]
[1641045030141,12.32649708,172.87,172.84,3.0]
[1641045030341,12.32649708,172.87,172.83,4.09502765]
[1641045030544,12.32649708,172.87,172.84,3.0]
[1641045030743,33.08779,172.88,172.84,3.0]
[1641045030942,33.08779,172.88,172.83,4.09502765]
[1641045030943,4.09744917,172.85,172.81,4.09502765]
[1641045031243,4.09744917,172.85,172.83,3.0]
[1641045031441,2.37667444,172.87,172.83,3.0]
[1641045032142,2.37667444,172.87,172.81,4.09502765]
[1641045032342,4.09739371,172.85,172.81,4.09502765]
[1641045032742,2.37667444,172.87,172.81,5.81580193]
[1641045032944,2.37667444,172.87,172.85,3.0]
[1641045033244,2.37667444,172.87,172.81,5.81580193]
[1641045033453,2.37667444,172.87,172.81,4.09502765]
[1641045034257,4.09743464,172.85,172.81,4.09502765]
[1641045034456,4.09743464,172.85,172.81,5.81580384]
[1641045034655,4.09743464,172.85,172.81,33.48059384]
[1641045034956,2.37667444,172.87,172.81,33.48059384]
[1641045035356,2.37667444,172.87,172.81,8.81580384]
[1641045035556,2.37667444,172.87,172.81,5.81580384]
[1641045036356,2.37667444,172.87,172.81,4.09502765]
[1641045036555,4.09789286,172.83,172.79,4.09502765]
[1641045036756,31.76268286,172.83,172.79,4.09502765]
[1641045037157,27.66479,172.83,172.79,4.09502765]
[1641045037357,4.09805224,172.82,172.78,4.09502765]
[1641045038762,27.66479,172.83,172.78,4.09502765]
[1641045039560,4.09806977,172.82,172.78,4.09502765]
[1641045040061,2.38413931,172.82,172.8,4.09502765]
[1641045041161,27.66479,172.83,172.8,4.09502765]
[1641045041862,5.78586513,172.81,172.76,12.32042744]
[1641045043362,12.32938802,172.78,172.74,58.66729]
[1641045043664,12.32938802,172.78,172.72,3.0]
[1641045043862,12.32938802,172.78,172.71,30.4424]
[1641045044162,2.4222242,172.8,172.71,30.4424]
[1641045044363,12.33375822,172.77,172.71,30.4424]
[1641045045164,11.6220794,172.78,172.72,1.72543475]
[1641045045864,14.75630034,172.77,172.72,1.72543475]
[1641045046063,14.75630034,172.77,172.74,3.0]
[1641045046265,14.75630034,172.77,172.72,4.72543475]
[1641045046664,9.1998552,172.78,172.71,30.4424]
[1641045046965,9.1998552,172.78,172.73,3.0]
[1641045047563,14.7200696,172.77,172.73,3.0]
[1641045047763,14.7200696,172.77,172.72,1.72543158]
[1641045048364,9.1998552,172.78,172.72,1.72543158]
[1641045048565,9.1998552,172.78,172.73,3.0]
[1641045049164,14.71991855,172.77,172.73,3.0]
[1641045049870,9.1998552,172.78,172.71,30.4424]
[1641045050568,14.75698016,172.77,172.72,1.68861065]
[1641045051270,12.33419311,172.76,172.73,3.0]
[1641045051870,2.42278705,172.77,172.73,3.0]
[1641045052071,14.75731835,172.77,172.73,3.0]
[1641045052571,14.75731835,172.77,172.71,30.4424]
[1641045052771,12.3345313,172.76,172.71,30.4424]
[1641045052971,12.3345313,172.76,172.73,3.0]
[1641045053573,32.2001,172.78,172.73,3.0]
[1641045053776,27.66479,172.79,172.73,3.0]
[1641045055275,27.66479,172.79,172.72,3.0]
[1641045055476,27.66479,172.79,172.71,30.4424]
[1641045055979,33.30579,172.79,172.71,30.4424]
[1641045056177,33.30579,172.79,172.72,3.0]
[1641045056380,33.30579,172.79,172.71,30.4424]
[1641045056580,33.30579,172.79,172.73,3.0]
[1641045056778,27.66479,172.76,172.71,30.4424]
[1641045056979,27.66479,172.76,172.74,3.0]
[1641045058080,33.30579,172.79,172.74,3.0]
[1641045058280,33.30579,172.79,172.71,30.4424]
[1641045058479,33.30579,172.79,172.74,3.0]
[1641045059283,33.30579,172.79,172.71,30.4424]
[1641045059785,2.48209677,172.78,172.71,30.4424]
[1641045059984,12.19767699,172.76,172.71,30.4424]
[1641045060486,12.19767699,172.76,172.72,1.62944361]
[1641045061886,12.19767699,172.76,172.72,4.62944361]
[1641045062485,12.19767699,172.76,172.72,3.0]
[1641045062986,11.84205123,172.78,172.72,3.0]
[1641045062987,12.19767699,172.75,172.72,3.0]
[1641045063687,12.19767699,172.76,172.72,3.0]
[1641045064089,12.19767699,172.76,172.71,30.4424]
[1641045064290,12.19767699,172.76,172.72,3.0]
[1641045064689,12.19767699,172.76,172.71,30.4424]
[1641045065193,12.19767699,172.76,172.72,3.0]
[1641045065392,12.19767699,172.76,172.72,4.62944429]
[1641045065992,12.19767699,172.76,172.72,3.0]
[1641045066191,12.19767699,172.76,172.71,30.4424]
[1641045066391,12.19767699,172.76,172.72,3.0]
[1641045066692,12.19767699,172.76,172.72,4.62944346]
[1641045067393,12.19767699,172.76,172.72,3.0]
[1641045067795,12.19767699,172.76,172.71,30.4424]
[1641045068796,12.19767699,172.76,172.72,1.62944397]
[1641045070904,12.19767699,172.76,172.72,4.62944397]
[1641045071204,12.19767699,172.76,172.72,1.62944397]
[1641045071403,12.19767699,172.76,172.71,30.4424]
[1641045071903,12.19767699,172.76,172.72,3.0]
[1641045072206,12.19767699,172.76,172.72,1.62944025]
[1641045072404,12.19767699,172.76,172.74,3.0]
[1641045072607,12.19767699,172.76,172.72,1.62944025]
[1641045073306,12.19767699,172.75,172.72,1.62944025]
[1641045075210,12.19767699,172.76,172.72,1.62944025]
[1641045075610,12.19767699,172.76,172.73,3.0]
[1641045075811,12.19767699,172.76,172.72,1.62944025]
[1641045076310,12.19767699,172.75,172.72,1.62944025]
[1641045076911,12.19767699,172.76,172.72,1.62944025]
[1641045077112,12.19767699,172.76,172.73,3.0]
[1641045077311,12.19767699,172.76,172.72,1.62944025]
[1641045077714,12.19767699,172.76,172.75,3.0]
[1641045077913,2.48209677,172.77,172.75,3.0]
[1641045078113,2.48209677,172.77,172.71,30.4424]
[1641045078714,2.48209677,172.77,172.72,1.62944689]
[1641045078914,2.48209677,172.77,172.72,4.62944689]
[1641045079520,2.48209677,172.77,172.71,30.4424]
[1641045079714,2.48209677,172.77,172.73,3.0]
[1641045080315,2.48209677,172.77,172.71,30.4424]
[1641045081018,2.48209677,172.77,172.73,3.0]
[1641045083619,2.48209677,172.77,172.71,30.4424]
[1641045084920,2.48209677,172.77,172.74,3.0]
[1641045085619,2.48209677,172.77,172.71,30.4424]
[1641045086420,2.48209677,172.77,172.74,3.0]
[1641045087926,11.84205123,172.78,172.74,3.0]
[1641045089925,32.57636814,172.79,172.74,3.0]
[1641045089926,72.08320937,172.79,172.74,3.0]
[1641045090527,11.84205123,172.78,172.74,3.0]
[1641045090727,11.84205123,172.78,172.71,30.4424]
[1641045090930,17.07305123,172.78,172.73,3.0]
[1641045091827,2.48209677,172.77,172.73,3.0]
[1641045092027,2.48209677,172.77,172.71,30.4424]
[1641045093134,12.33510616,172.75,172.71,30.4424]
[1641045093832,12.33510616,172.75,172.73,3.0]
[1641045095833,12.33510616,172.75,172.71,30.4424]
[1641045096935,12.33510616,172.75,172.73,3.0]
[1641045100943,12.33510616,172.75,172.72,3.0]
[1641045101142,12.33510616,172.75,172.71,30.4424]
[1641045101341,12.33510616,172.75,172.73,3.0]
[1641045104044,12.33510616,172.75,172.71,30.4424]
[1641045104245,12.33510616,172.75,172.72,3.0]
[1641045109450,12.33510616,172.75,172.71,34.55410122]
[1641045109650,12.33510616,172.75,172.72,3.0]
[1641045111757,12.33510616,172.75,172.71,37.55410122]
[1641045115759,12.33510616,172.75,172.71,4.11170122]
[1641045116162,12.33510616,172.74,172.71,4.11170122]
[1641045116865,12.33510616,172.74,172.7,4.11170122]
[1641045117262,12.33510616,172.74,172.68,32.0327]
[1641045117662,5.78921469,172.71,172.67,12.32042744]
[1641045117862,5.78921469,172.71,172.66,12.32042744]
[1641045118564,27.66479,172.7,172.66,12.32042744]
[1641045118864,12.33510616,172.68,172.64,32.0792]
[1641045119065,12.33510616,172.68,172.63,27.66479]
[1641045119365,12.33510616,172.68,172.63,30.66479]
[1641045119563,12.33510616,172.68,172.63,3.0]
[1641045120166,27.66479,172.7,172.61,32.0702]
[1641045120366,12.3399671,172.67,172.61,32.0702]
[1641045120865,12.3399671,172.67,172.65,3.0]
[1641045121164,12.33930343,172.68,172.61,32.0702]
[1641045121967,9.35995446,172.69,172.65,3.0]
[1641045122166,9.35995446,172.69,172.61,32.0702]
[1641045122367,5.7905556,172.67,172.6,15.32042744]
[1641045122567,5.7905556,172.67,172.6,12.32042744]
[1641045122968,5.7905556,172.67,172.6,15.32042744]
[1641045123473,12.34177339,172.65,172.6,3.0]
[1641045124573,5.7905556,172.67,172.58,27.66479]
[1641045125373,5.7905556,172.67,172.59,3.0]
[1641045125873,5.7905556,172.67,172.58,30.66479]
[1641045126072,31.1382,172.68,172.64,3.0]